Workbook

Sheet Tabelle1
A1: Aktie1 | C1: Aktie2 | E1: Aktie3 | N1: Portfolio1 kum | P1: Portfolio2 kum
A2: 10 | C2: 121 | E2: 1.12 | N2: =A2*$J$17+C2*$J$18+E2*$J$19 -> 44.04 | P2: =A2*$K$17+C2*$K$18+E2*$K$19 -> 41.88826669
A3: 12 | B3: =LN(A3/A2)*100 -> 18.23215568 | C3: 122 | D3: =LN(C3/C2)*100 -> 0.8230499137 | E3: 1.18 | F3: =LN(E3/E2)*100 -> 5.218575317 | I3: VAR/KOVAR | J3: 1 | K3: 2 | L3: 3 | N3: =A3*$J$17+C3*$J$18+E3*$J$19 -> 45.06 | O3: =LN(N3/N2)*100 -> 2.289662315 | P3: =A3*$K$17+C3*$K$18+E3*$K$19 -> 42.34526522 | Q3: =LN(P3/P2)*100 -> 1.085085718
A4: 14 | B4: =LN(A4/A3)*100 -> 15.41506798 | C4: 123 | D4: =LN(C4/C3)*100 -> 0.8163310639 | E4: 1.24 | F4: =LN(E4/E3)*100 -> 4.959694114 | I4: 1 | J4: =COVAR(B3:B102,B3:B102) -> 91.25353993 | K4: =COVAR(B3:B102,D3:D102) -> 0.07448252218 | L4: =COVAR(B3:B102,F3:F102) -> 1.556327021 | N4: 46.08 | O4: =LN(N4/N3)*100 -> 2.238408138 | P4: 42.80226374 | Q4: =LN(P4/P3)*100 -> 1.073437883
A5: 14 | B5: 0 | C5: 124 | D5: 0.8097210233 | E5: 1.29 | F5: 3.953083876 | I5: 2 | J5: =COVAR(D3:D102,B3:B102) -> 0.07448252218 | K5: =COVAR(D3:D102,D3:D102) -> 16.33154603 | L5: =COVAR(D3:D102,F3:F102) -> -1.193149307 | N5: 46.43 | O5: 0.7566785644 | P5: 43.17035908 | Q5: 0.8563134843
A6: 18 | B6: 25.13144283 | C6: 119 | D6: -4.115807249 | E6: 1.36 | F6: 5.284248137 | I6: 3 | J6: =COVAR(F3:F102,B3:B102) -> 1.556327021 | K6: =COVAR(F3:F102,D3:D102) -> -1.193149307 | L6: =COVAR(F3:F102,F3:F102) -> 8.209006548 | N6: 46.12 | O6: -0.6699106631 | P6: 41.69418185 | Q6: -3.479253221
A7: 20 | B7: 10.53605157 | C7: 126 | D7: 5.715841384 | E7: 1.42 | F7: 4.317217187 | N7: 49.14 | O7: 6.342667169 | P7: 44.17325933 | Q7: 5.775801839
A8: 22 | B8: 9.53101798 | C8: 127 | D8: 0.7905179507 | E8: 1.4 | F8: -1.418463499 | I8: Rendite | J8: =SUM(B3:B102) -> 304.4522438 | K8: =SUM(D3:D102) -> 60.23721559 | L8: =SUM(F3:F102) -> 184.957904 | N8: 50.13333333 | O8: 2.001275575 | P8: 44.58052638 | Q8: 0.9177521986
A9: 21 | B9: -4.652001563 | C9: 128 | D9: 0.7843177461 | E9: 1.54 | F9: 9.53101798 | N9: 50.18 | O9: 0.09304180906 | P9: 44.96322624 | Q9: 0.8547825643
A10: 26 | B10: 21.35741003 | C10: 120 | D10: -6.453852114 | E10: 1.6 | F10: 3.822121282 | N10: 49.2 | O10: -1.972291744 | P10: 42.51113649 | Q10: -5.607888453
A11: 35 | B11: 29.72515235 | C11: 130 | D11: 8.004270767 | E11: 1.66 | F11: 3.681397312 | N11: 55.55333333 | O11: 12.14498968 | P11: 46.29065711 | Q11: 8.517407385
A12: 30 | B12: -15.41506798 | C12: 131 | D12: 0.7662872746 | E12: 1.72 | F12: 3.550668846 | I12: Standabw | J12: 1 | K12: 2 | L12: 3 | N12: 54.24 | O12: -2.392487665 | P12: 46.45825197 | Q12: 0.3613951817
A13: 32 | B13: 6.453852114 | C13: 132 | D13: 0.7604599385 | E13: 1.78 | F13: 3.428907348 | J13: =STDEV(B3:B102) -> 9.60079647 | K13: =STDEV(D3:D102) -> 4.061589731 | L13: =STDEV(F3:F102) -> 2.87957042 | N13: 55.26 | O13: 1.863067586 | P13: 46.9152505 | Q13: 0.9788690905
A14: 34 | B14: 6.062462182 | C14: 140 | D14: 5.884050002 | E14: 1.7 | F14: -4.598511324 | N14: 58.56666667 | O14: 5.811638703 | P14: 49.64431105 | Q14: 5.654100978
A15: 36 | B15: 5.715841384 | C15: 134 | D15: -4.380262266 | E15: 1.9 | F15: 11.12256351 | N15: 57.3 | O15: -2.18650828 | P15: 47.82924755 | Q15: -3.724647701
A16: 45 | B16: 22.31435513 | C16: 135 | D16: 0.7434978488 | E16: 1.96 | F16: 3.109058707 | I16: Portfolio | J16: Anteile PF1 | K16: Anteile PF2 | N16: 60.65333333 | O16: 5.687397031 | P16: 48.57564975 | Q16: 1.548504547
A17: 40 | B17: -11.77830357 | C17: 136 | D17: 0.7380107298 | E17: 2.02 | F17: 3.015303817 | J17: =1/3 -> 0.3333333333 | K17: 0.0413433809 | N17: 59.34 | O17: -2.189097917 | P17: 48.74324461 | Q17: 0.3444244381
A18: 42 | B18: 4.879016417 | C18: 137 | D18: 0.7326040092 | E18: 2.08 | F18: 2.92703823 | J18: =1/3 -> 0.3333333333 | K18: 0.3370131587 | N18: 60.36 | O18: 1.704301904 | P18: 49.20024314 | Q18: 0.9331949579
A19: 43 | B19: 2.353049741 | C19: 145 | D19: 5.675281659 | E19: 2.1 | F19: 0.9569451016 | J19: =1/3 -> 0.3333333333 | K19: 0.6216434604 | N19: 63.36666667 | O19: 4.861132693 | P19: 51.95012466 | Q19: 5.43855518
A20: 46 | B20: 6.74412808 | C20: 139 | D20: -4.225980929 | E20: 2.2 | F20: 4.652001563 | N20: 62.4 | O20: -1.537268545 | P20: 50.11424019 | Q20: -3.5978914
A21: 50 | B21: 8.338160894 | C21: 140 | D21: 0.7168489479 | E21: 2.26 | F21: 2.690745292 | N21: 64.08666667 | O21: 2.667105859 | P21: 50.65392548 | Q21: 1.071152673
A22: 50 | B22: 0 | C22: 141 | D22: 0.7117467769 | E22: 2.32 | F22: 2.620237239 | I22: Summe Anteile | J22: =SUM(J17:J19) -> 1 | K22: =SUM(K17:K19) -> 1 | N22: 64.44 | O22: 0.5498224339 | P22: 51.02823725 | Q22: 0.7362421236
A23: 48 | B23: -4.082199452 | C23: 137 | D23: -2.877896455 | E23: 2.38 | F23: 2.553330201 | I23: Portfoliovarianz | J23: =MMULT(TRANSPOSE(J17:J19),MMULT(J4:L6,J17:J19)) -> 12.96326811 | K23: =MMULT(TRANSPOSE(K17:K19),MMULT(J4:L6,K17:K19)) -> 4.765311961 | N23: 62.46 | O23: -3.120820645 | P23: 49.63479646 | Q23: -2.768702175
A24: 54 | B24: 11.77830357 | C24: 143 | D24: 4.286370443 | E24: 2.3 | F24: -3.419136475 | I24: Portfoliostanabw | J24: =SQRT(J23) -> 3.600453875 | K24: =SQRT(K23) -> 2.18295945 | N24: 66.43333333 | O24: 6.16725867 | P24: 51.85520422 | Q24: 4.376317104
A25: 56 | B25: 3.636764417 | C25: 144 | D25: 0.6968669316 | E25: 2.5 | F25: 8.338160894 | I25: Zielfunk | J25: =MMULT(TRANSPOSE(J17:J19),MMULT(J4:L6,J17:J19)) -> 12.96326811 | K25: =MMULT(TRANSPOSE(K17:K19),MMULT(J4:L6,K17:K19)) -> 4.765311961 | N25: 67.5 | O25: 1.592865933 | P25: 52.39923284 | Q25: 1.04366503
A26: 63 | B26: 11.77830357 | C26: 145 | D26: 0.6920442845 | E26: 2.56 | F26: 2.371652662 | I26: Rendite | J26: =MMULT(J17:J19,J8:L8) -> 101.4840813 | K26: =MMULT(K17:K19,J8:L8) -> 12.58708508 | N26: 70.18666667 | O26: 3.903076159 | P26: 53.06294827 | Q26: 1.258696129
A27: 60 | B27: -4.879016417 | C27: 130 | D27: -10.9199292 | E27: 2.62 | F27: 2.316705928 | N27: 64.20666667 | O27: -8.9051312 | P27: 47.92101935 | Q27: -10.19246864
A28: 62 | B28: 3.278982282 | C28: 147 | D28: 12.28981363 | E28: 2.49 | F28: -5.08916073 | N28: 70.49666667 | O28: 9.345837991 | P28: 53.65211616 | Q28: 11.29666866
A29: 64 | B29: 3.174869831 | C29: 148 | D29: 0.6779686985 | E29: 2.74 | F29: 9.567520992 | J29: PF1 | K29: PF2 | N29: 71.58 | O29: 1.525027796 | P29: 54.22722695 | Q29: 1.066221238
A30: 66 | B30: 3.077165867 | C30: 149 | D30: 0.6734032181 | E30: 2.8 | F30: 2.166149678 | I30: Stabw | J30: =STDEV(O3:O102) -> 3.923972612 | K30: =STDEV(Q3:Q102) -> 3.681451343 | N30: 72.6 | O30: 1.414921649 | P30: 54.68422548 | Q30: 0.8392160789
A31: 62 | B31: -6.252035698 | C31: 150 | D31: 0.6688988151 | E31: 2.69 | F31: -4.007822357 | J31: PF1 | K31: PF2 | N31: 71.56333333 | O31: -1.438208332 | P31: 54.78748433 | Q31: 0.1886494425
A32: 70 | B32: 12.1360857 | C32: 160 | D32: 6.453852114 | E32: 2.92 | F32: 8.204242267 | I32: Rendite | J32: =SUM(O3:O102) -> 119.8782245 | K32: =SUM(Q3:Q102) -> 73.76396102 | N32: 77.64 | O32: 8.149991979 | P32: 58.63134096 | Q32: 6.780760255
A33: 72 | B33: 2.817087697 | C33: 152 | D33: -5.129329439 | E33: 2.98 | F33: 2.033968424 | N33: 75.66 | O33: -2.58331391 | P33: 56.05522106 | Q33: -4.493208706
A34: 74 | B34: 2.739897419 | C34: 153 | D34: 0.6557400546 | E34: 3.04 | F34: 1.99342149 | N34: 76.68 | O34: 1.339129897 | P34: 56.51221959 | Q34: 0.811959544
A35: 76 | B35: 2.666824708 | C35: 154 | D35: 0.6514681021 | E35: 3.33 | F35: 9.111478857 | N35: 77.77666667 | O35: 1.420055371 | P35: 57.11219611 | Q35: 1.056079535
A36: 72 | B36: -5.406722127 | C36: 139 | D36: -10.24786693 | E36: 3.16 | F36: -5.240027639 | N36: 71.38666667 | O36: -8.573036135 | P36: 51.78594582 | Q36: -9.789888978
A37: 80 | B37: 10.53605157 | C37: 156 | D37: 11.53820741 | E37: 3.22 | F37: 1.880933196 | N37: 79.74 | O37: 11.06602314 | P37: 57.88321517 | Q37: 11.13086529
A38: 82 | B38: 2.469261259 | C38: 157 | D38: 0.6389798099 | E38: 3.2 | F38: -0.6230549751 | N38: 80.73333333 | O38: 1.23802005 | P38: 58.29048222 | Q38: 0.7011375704
A39: 90 | B39: 9.309042307 | C39: 158 | D39: 0.6349227679 | E39: 3.34 | F39: 4.281999718 | N39: 83.78 | O39: 3.704277307 | P39: 59.04527251 | Q39: 1.286565554
A40: 86 | B40: -4.546237408 | C40: 159 | D40: 0.6309169193 | E40: 3.4 | F40: 1.780462463 | N40: 82.8 | O40: -1.176625413 | P40: 59.25421076 | Q40: 0.3532364711
A41: 88 | B41: 2.298951822 | C41: 155 | D41: -2.54790853 | E41: 3.46 | F41: 1.749315745 | N41: 82.15333333 | O41: -0.7840641549 | P41: 58.02614349 | Q41: -2.094318627
A42: 90 | B42: 2.247285585 | C42: 161 | D42: 3.797924807 | E42: 3.49 | F42: 0.8633147145 | N42: 84.83 | O42: 3.206183398 | P42: 60.14955851 | Q42: 3.594044372
A43: 92 | B43: 2.197890672 | C43: 162 | D43: 0.6191970248 | E43: 3.58 | F43: 2.54610642 | N43: 85.86 | O43: 1.206880898 | P43: 60.62520634 | Q43: 0.7876650254
A44: 86 | B44: -6.74412808 | C44: 169 | D44: 4.230237969 | E44: 3.64 | F44: 1.662088124 | N44: 86.21333333 | O44: 0.4106781953 | P44: 62.77353677 | Q44: 3.48228429
A45: 96 | B45: 11.00008952 | C45: 164 | D45: -3.00322871 | E45: 3.6 | F45: -1.104983619 | N45: 87.86666667 | O45: 1.899566921 | P45: 61.47703905 | Q45: -2.086983938
A46: 98 | B46: 2.06192872 | C46: 165 | D46: 0.6079046076 | E46: 3.76 | F46: 4.348511194 | N46: 88.92 | O46: 1.191657514 | P46: 61.99620193 | Q46: 0.8409367561
A47: 92 | B47: -6.317890162 | C47: 166 | D47: 0.6042314456 | E47: 3.82 | F47: 1.583146522 | N47: 87.27333333 | O47: -1.869213301 | P47: 62.12245341 | Q47: 0.2034368229
A48: 102 | B48: 10.31842362 | C48: 160 | D48: -3.681397312 | E48: 3.95 | F48: 3.346515629 | N48: 88.65 | O48: 1.565107644 | P48: 60.59462191 | Q48: -2.49013503
A49: 104 | B49: 1.941808586 | C49: 168 | D49: 4.879016417 | E49: 3.94 | F49: -0.2534855603 | N49: 91.98 | O49: 3.687512959 | P49: 63.36719751 | Q49: 4.474019629
A50: 98 | B50: -5.942342047 | C50: 169 | D50: 0.593473552 | E50: 4 | F50: 1.511363781 | N50: 90.33333333 | O50: -1.80646299 | P50: 63.49344899 | Q50: 0.1990396961
A51: 108 | B51: 9.716374845 | C51: 170 | D51: 0.5899722127 | E51: 4.06 | F51: 1.488861249 | N51: 94.02 | O51: 4.000099338 | P51: 64.28119457 | Q51: 1.233038941
A52: 110 | B52: 1.834913867 | C52: 155 | D52: -9.237332013 | E52: 4.1 | F52: 0.9804000097 | N52: 89.7 | O52: -4.703675653 | P52: 59.33354969 | Q52: -8.009221648
A53: 112 | B53: 1.80185055 | C53: 172 | D53: 10.40693599 | E53: 4.18 | F53: 1.932427283 | N53: 96.06 | O53: 6.850222717 | P53: 65.19519162 | Q53: 9.421081008
A54: 100 | B54: -11.33286853 | C54: 173 | D54: 0.5797117684 | E54: 4.24 | F54: 1.425202271 | N54: 92.41333333 | O54: -3.870172786 | P54: 65.07338282 | Q54: -0.1870118568
A55: 116 | B55: 14.84200051 | C55: 174 | D55: 0.5763704717 | E55: 4.22 | F55: -0.4728141196 | N55: 98.07333333 | O55: 5.944422977 | P55: 66.0594572 | Q55: 1.503960366
A56: 118 | B56: 1.709443336 | C56: 175 | D56: 0.5730674709 | E56: 4.36 | F56: 3.263692931 | N56: 99.12 | O56: 1.061573917 | P56: 66.56618721 | Q56: 0.7641545841
A57: 120 | B57: 1.680711832 | C57: 165 | D57: -5.884050002 | E57: 4.42 | F57: 1.366763873 | N57: 96.47333333 | O57: -2.706460568 | P57: 63.31604099 | Q57: -5.005803983
A58: 78 | B58: -43.07829161 | C58: 177 | D58: 7.020425867 | E58: 4.48 | F58: 1.348335034 | N58: 86.49333333 | O58: -10.9199292 | P58: 65.6610755 | Q58: 3.636758263
A59: 124 | B59: 46.35727389 | C59: 178 | D59: 0.5633817718 | E59: 4.47 | F59: -0.2234637801 | N59: 102.1566667 | O59: 16.6440243 | P59: 67.89366775 | Q59: 3.34364799
A60: 126 | B60: 1.600034135 | C60: 179 | D60: 0.5602255549 | E60: 4.6 | F60: 2.866789487 | N60: 103.2 | O60: 1.016127041 | P60: 68.39418132 | Q60: 0.7344980847
A61: 128 | B61: 1.574835697 | C61: 180 | D61: 0.5571045049 | E61: 4.66 | F61: 1.295914464 | N61: 104.22 | O61: 0.9835196434 | P61: 68.85117985 | Q61: 0.665960894
A62: 130 | B62: 1.550418654 | C62: 188 | D62: 4.348511194 | E62: 4.72 | F62: 1.279335146 | N62: 107.5733333 | O62: 3.166873606 | P62: 71.66727049 | Q62: 4.00868033
A63: 132 | B63: 1.526747213 | C63: 182 | D63: -3.243527575 | E63: 4.78 | F63: 1.263174691 | N63: 106.26 | O63: -1.228386451 | P63: 69.7651769 | Q63: -2.689917777
A64: 120 | B64: -9.53101798 | C64: 183 | D64: 0.5479465765 | E64: 5.09 | F64: 6.283728406 | N64: 102.6966667 | O64: -3.410926161 | P64: 69.79877896 | Q64: 0.04815292188
A65: 136 | B65: 12.5163143 | C65: 184 | D65: 0.5449604768 | E65: 4.9 | F65: -3.804262545 | N65: 108.3 | O65: 5.312549459 | P65: 70.67917396 | Q65: 1.253444407
A66: 138 | B66: 1.459879942 | C66: 185 | D66: 0.5420067469 | E66: 4.96 | F66: 1.217053562 | N66: 109.32 | O66: 0.9374207053 | P66: 71.13617249 | Q66: 0.6445002201
A67: 140 | B67: 1.438873745 | C67: 190 | D67: 2.666824708 | E67: 5.02 | F67: 1.202419297 | N67: =A67*$J$17+C67*$J$18+E67*$J$19 -> 111.6733333 | O67: 2.129858181 | P67: =A67*$K$17+C67*$K$18+E67*$K$19 -> 72.94122365 | Q67: 2.505799883
A68: 142 | B68: =LN(A68/A67)*100 -> 1.418463499 | C68: 187 | D68: =LN(C68/C67)*100 -> -1.591545531 | E68: 5.08 | F68: =LN(E68/E67)*100 -> 1.188132789 | N68: 111.36 | O68: =LN(N68/N67)*100 -> -0.2809746281 | P68: 72.05016954 | Q68: =LN(P68/P67)*100 -> -1.229128578
A69: 144 | B69: 1.398624197 | C69: 188 | D69: 0.5333345975 | E69: 5.01 | F69: -1.387534649 | N69: 112.3366667 | O69: 0.8732118248 | P69: 72.42635442 | Q69: 0.5207568927
A70: 139 | B70: -3.533936645 | C70: 189 | D70: 0.530505223 | E70: 5.2 | F70: 3.722271049 | N70: 111.0666667 | O70: -1.136969321 | P70: 72.67476293 | Q70: 0.3423939924
A71: 148 | B71: 6.273834063 | C71: 190 | D71: 0.5277057101 | E71: 5.26 | F71: 1.147240116 | N71: 114.42 | O71: 2.974526722 | P71: 73.42116513 | Q71: 1.021806286
A72: 150 | B72: 1.342302033 | C72: 185 | D72: -2.666824708 | E72: 5.32 | F72: 1.13422766 | N72: 113.44 | O72: -0.8601826057 | P72: 71.8560847 | Q72: -2.154695215
A73: 152 | B73: 1.324522675 | C73: 192 | D73: 3.713954695 | E73: 5.38 | F73: 1.121507082 | N73: 116.46 | O73: 2.627380363 | P73: 74.33516219 | Q73: 3.391879072
A74: 154 | B74: 1.307208157 | C74: 193 | D74: 0.5194816877 | E74: 5.36 | F74: -0.3724399091 | N74: 117.4533333 | O74: 0.8493225165 | P74: 74.74242924 | Q74: 0.5463840147
A75: 160 | B75: 3.822121282 | C75: 194 | D75: 0.5167970158 | E75: 5.5 | F75: 2.578411716 | N75: 119.8333333 | O75: 2.006079692 | P75: 75.41453277 | Q75: 0.8952072659
A76: 158 | B76: -1.257878221 | C76: 179 | D76: -8.047235322 | E76: 5.56 | F76: 1.085001602 | N76: 114.1866667 | O76: -4.826735232 | P76: 70.31394723 | Q76: -7.002982367
A77: 160 | B77: 1.257878221 | C77: 196 | D77: 9.072885339 | E77: 5.55 | F77: -0.1800180504 | N77: 120.5166667 | O77: 5.395351978 | P77: 76.11964126 | Q77: 7.933615452
A78: 162 | B78: 1.242252 | C78: 197 | D78: 0.5089069507 | E78: 5.68 | F78: 2.315330497 | N78: 121.56 | O78: 0.8619912096 | P78: 76.62015483 | Q78: 0.6553830432
A79: 164 | B79: 1.227009259 | C79: 198 | D79: 0.5063301957 | E79: 5.74 | F79: 1.05079776 | N79: 122.58 | O79: 0.8355910009 | P79: 77.07715335 | Q79: 0.5946751837
A80: 170 | B80: 3.593200923 | C80: 199 | D80: 0.503779403 | E80: 5.8 | F80: 1.039870722 | N80: 124.9333333 | O80: 1.901638364 | P80: 77.69952541 | Q80: 0.8042237515
A81: 168 | B81: -1.183445765 | C81: 195 | D81: -2.030526616 | E81: 5.86 | F81: 1.029168604 | N81: 122.9533333 | O81: -1.597538211 | P81: 76.30608462 | Q81: -1.809646825
A82: 170 | B82: 1.183445765 | C82: 201 | D82: 3.03053495 | E82: 5.8 | F82: -1.029168604 | N82: 125.6 | O82: 2.129737445 | P82: 78.37355172 | Q82: 2.67338389
A83: 172 | B83: 1.169603976 | C83: 202 | D83: 0.4962789342 | E83: 5.98 | F83: 3.056265041 | N83: 126.66 | O83: 0.8404077054 | P83: 78.90514747 | Q83: 0.675994614
A84: 168 | B84: -2.353049741 | C84: 203 | D84: 0.4938281641 | E84: 6.04 | F84: 0.9983443984 | N84: 125.68 | O84: -0.7767337141 | P84: 79.11408571 | Q84: 0.2644467516
A85: 176 | B85: 4.652001563 | C85: 199 | D85: -1.990115432 | E85: 6.1 | F85: 0.9884759233 | N85: 127.0333333 | O85: 1.071052526 | P85: 78.13407873 | Q85: -1.246462459
A86: 178 | B86: 1.129955525 | C86: 205 | D86: 2.970515441 | E86: 6.16 | F86: 0.9788006366 | N86: 129.72 | O86: 2.092876223 | P86: 80.27614305 | Q86: 2.704617002
A87: 180 | B87: 1.11733006 | C87: 206 | D87: 0.4866189651 | E87: 6.1 | F87: -0.9788006366 | N87: 130.7 | O87: 0.7526339191 | P87: 80.65854436 | Q87: 0.4752263651
A88: 176 | B88: -2.247285585 | C88: 207 | D88: 0.4842624476 | E88: 6.28 | F88: 2.90812093 | N88: 129.76 | O88: -0.7218030263 | P88: 80.94207982 | Q88: 0.350909225
A89: 184 | B89: 4.445176257 | C89: 210 | D89: 1.438873745 | E89: 6.34 | F89: 0.9508787969 | N89: 133.4466667 | O89: 2.801530703 | P89: 82.32116495 | Q89: 1.689440798
A90: 186 | B90: 1.08109161 | C90: 209 | D90: -0.4773278753 | E90: 6.4 | F90: 0.9419221916 | N90: 133.8 | O90: 0.26442503 | P90: 82.10413716 | Q90: -0.2639835993
A91: 193 | B91: 3.694351519 | C91: 210 | D91: 0.4773278753 | E91: 6.46 | F91: 0.9331327429 | N91: 136.4866667 | O91: 1.988078206 | P91: 82.7678526 | Q91: 0.8051325382
A92: 190 | B92: -1.566611674 | C92: 211 | D92: 0.4750602759 | E92: 6.39 | F92: -1.089504941 | N92: 135.7966667 | O92: -0.5068260834 | P92: 82.93732057 | Q92: 0.2045416322
A93: 192 | B93: 1.047129987 | C93: 212 | D93: 0.4728141196 | E93: 6.58 | F93: 2.930047695 | N93: 136.86 | O93: 0.7799836602 | P93: 83.47513275 | Q93: 0.6463627447
A94: 194 | B94: 1.036278704 | C94: 220 | D94: 3.704127168 | E94: 6.64 | F94: 0.9077218151 | N94: 140.2133333 | O94: 2.420656679 | P94: 86.29122339 | Q94: 3.317911794
A95: 196 | B95: 1.025650017 | C95: 214 | D95: -2.765153133 | E95: 6.7 | F95: 0.8995562909 | N95: 138.9 | O95: -0.9410822553 | P95: 84.3891298 | Q95: -2.228929452
A96: 198 | B96: 1.015237146 | C96: 215 | D96: 0.4662013106 | E96: 6.56 | F96: -2.111692344 | N96: 139.8533333 | O96: 0.6840004665 | P96: 84.72179964 | Q96: 0.3934343762
A97: 190 | B97: -4.124295853 | C97: 216 | D97: 0.4640379557 | E97: 6.82 | F97: 3.88688689 | N97: 137.6066667 | O97: -1.619488049 | P97: 84.88969305 | Q97: 0.1979741625
A98: 202 | B98: 6.124362524 | C98: 217 | D98: 0.4618945856 | E98: 6.88 | F98: 0.875918009 | N98: 141.96 | O98: 3.114595384 | P98: 85.76012539 | Q98: 1.02014745
A99: 204 | B99: 0.9852296443 | C99: 199 | D99: -8.659252882 | E99: 6.94 | F99: 0.8683122573 | N99: 136.6466667 | O99: -3.814680892 | P99: 79.8138739 | Q99: -7.185681165
A100: 206 | B100: 0.9756174945 | C100: 219 | D100: 9.576690509 | E100: 6.88 | F100: -0.8683122573 | N100: 143.96 | O100: 5.213696435 | P100: 86.59952523 | Q100: 8.159698546
A101: 212 | B101: 2.871010588 | C101: 220 | D101: 0.4555816536 | E101: 7.06 | F101: 2.582639956 | N101: 146.3533333 | O101: 1.648830612 | P101: 87.2964945 | Q101: 0.8015974145
A102: 210 | B102: -0.9478743955 | C102: 221 | D102: 0.4535155165 | E102: 7.12 | F102: 0.8462673919 | N102: 146.04 | O102: -0.214323254 | P102: 87.5881195 | Q102: 0.3335059251

Sheet Tabelle2

Sheet Tabelle3
